bitfinex/quotes_ETHUSD_20240711
["timestamp","ask_amount","ask_price","bid_price","bid_amount"]
[1720715678315,1.10297488,3140.3,3139.5,2.249]
[1720715678505,1.10297488,3140.3,3138.5,2.4119]
[1720715678506,4.68476,3140.0,3138.5,2.4119]
[1720715678817,3.365,3139.8,3138.5,2.4119]
[1720715678978,3.365,3139.6,3138.6,0.04113792]
[1720715679179,1.10297488,3139.5,3138.6,0.04113792]
[1720715679482,4.10297488,3139.5,3138.6,0.04113792]
[1720715679708,1.10297488,3139.4,3138.6,0.04113792]
[1720715679882,0.41029749,3139.3,3138.6,0.04113792]
[1720715680089,1.10297488,3139.2,3138.6,0.04113792]
[1720715680776,3.0,3139.5,3138.6,0.04113792]
[1720715680777,1.10297488,3139.1,3138.6,0.04113792]
[1720715681093,3.0,3139.5,3138.6,0.04113792]
[1720715681290,1.1034021,3139.4,3138.6,0.04113792]
[1720715681589,3.0,3139.5,3138.7,3.18603]
[1720715681590,1.51374231,3139.3,3138.7,3.18603]
[1720715681776,1.1034021,3139.2,3138.8,0.04108123]
[1720715682108,1.1034021,3139.1,3138.6,3.18613]
[1720715682317,1.1034021,3139.0,3138.9,0.04105289]
[1720715682481,1.1034021,3139.0,3138.5,2.4119]
[1720715682682,3.51062586,3139.9,3138.9,0.04105289]
[1720715683016,5.15591541,3139.8,3139.0,0.04102455]
[1720715683205,4.10335282,3139.7,3139.0,0.04102455]
[1720715683406,1.10335282,3139.6,3138.5,5.59806]
[1720715683608,1.10335282,3139.6,3138.6,0.04113792]
[1720715683916,0.41033528,3139.5,3138.6,0.04113792]
[1720715684117,1.10335282,3139.4,3138.6,0.04113792]
[1720715684298,4.10335282,3139.4,3138.6,0.04113792]
[1720715684493,4.10335282,3139.4,3138.1,2.4257]
[1720715684494,6.365,3139.4,3138.1,3.9257]
[1720715684698,4.46847202,3139.3,3138.7,0.04110957]
[1720715684912,4.46847202,3139.3,3138.1,3.9257]
[1720715684913,0.9841572,3139.2,3138.1,3.9257]
[1720715685104,2.08761075,3139.2,3138.8,0.04108123]
[1720715685424,1.10345355,3139.1,3138.9,0.04105289]
[1720715685632,0.9841572,3139.2,3138.9,0.04105289]
[1720715685633,1.10345355,3139.0,3138.9,0.04105289]
[1720715685814,1.10345355,3139.0,3138.5,3.18618]
[1720715686014,1.10345355,3138.9,3138.6,0.04013792]
[1720715686315,1.10345355,3138.8,3138.6,0.04013792]
[1720715686629,1.10345355,3138.7,3138.3,7.48]
[1720715686926,3.0,3139.4,3138.7,0.04010957]
[1720715687129,1.7399832,3139.3,3138.3,7.48]
[1720715687430,1.10349877,3139.2,3138.3,7.48]
[1720715687601,1.10349877,3139.1,3138.4,0.04032789]
[1720715687797,0.6365,3139.3,3138.4,0.04032789]
[1720715687798,1.10348424,3139.0,3138.4,0.04032789]
[1720715688029,1.10348424,3138.9,3138.4,0.04032789]
[1720715688332,4.46848424,3139.2,3138.4,0.04032789]
[1720715688629,0.6365,3139.3,3138.4,0.04032789]
[1720715688630,4.61398266,3139.1,3138.4,0.04032789]
[1720715688833,1.10348424,3139.0,3138.4,0.04032789]
[1720715689297,1.10348424,3139.2,3138.4,0.04032789]
[1720715689708,1.10348424,3139.1,3138.4,0.04032789]
[1720715689912,1.10348424,3139.3,3138.4,0.04032789]
[1720715690116,0.16141101,3139.2,3138.4,0.04032789]
[1720715690316,1.10348424,3139.1,3138.4,0.04032789]
[1720715690599,1.10348424,3139.0,3138.4,0.04032789]
[1720715690839,1.10348424,3138.9,3138.6,3.1861]
[1720715691002,3.0,3139.7,3138.6,3.1861]
[1720715691003,1.10348424,3138.8,3138.6,3.1861]
[1720715691204,0.53742,3139.6,3138.7,0.04038864]
[1720715691536,1.45714141,3139.5,3138.7,0.04038864]
[1720715691726,1.10339941,3139.4,3138.7,0.04038864]
[1720715692035,1.10339941,3139.4,3138.8,0.04035821]
[1720715692202,4.10339941,3139.4,3138.8,0.04035821]
[1720715692402,1.10339941,3139.3,3138.3,12.16641]
[1720715692630,0.41033994,3139.2,3138.4,0.04045076]
[1720715692938,1.10339941,3139.1,3138.4,0.04045076]
[1720715693817,1.10339941,3139.3,3138.4,0.04045076]
[1720715694516,6.87562586,3139.4,3138.4,0.04045076]
[1720715694718,1.10351294,3139.2,3138.4,0.04045076]
[1720715694898,1.10351294,3139.3,3138.4,0.04045076]
[1720715695102,1.90142682,3139.2,3138.4,0.04045076]
[1720715695343,1.10351294,3139.1,3138.4,0.04045076]
[1720715695937,1.10348913,3139.0,3138.4,0.04045076]
[1720715696140,1.10348913,3138.9,3138.4,0.04045076]
[1720715696306,1.10348913,3138.8,3138.4,0.04045076]
[1720715696505,1.10348913,3139.1,3138.4,0.04045076]
[1720715696743,0.1901403,3139.0,3138.4,0.04045076]
[1720715696941,1.10348913,3138.9,3138.4,0.04045076]
[1720715697641,1.10351118,3138.8,3138.4,0.04045076]
[1720715697847,1.10351118,3138.7,3138.4,0.04045076]
[1720715698013,1.10352785,3138.6,3138.4,0.04045076]
[1720715698218,1.10352785,3138.5,3138.1,7.16211]
[1720715698547,1.10352785,3138.4,3138.2,0.04055328]
[1720715698744,4.16291388,3139.2,3138.2,0.04055328]
[1720715698745,1.10352785,3138.9,3138.2,0.04055328]
[1720715699047,1.10352785,3138.8,3138.2,0.04055328]
[1720715699218,1.10352785,3139.0,3138.2,0.04055328]
[1720715700788,3.79791388,3139.2,3138.2,3.22707328]
[1720715700997,1.10352524,3138.9,3138.2,3.22707328]
[1720715701288,1.10352524,3138.8,3138.2,0.04055328]
[1720715701496,3.71629139,3139.1,3138.2,0.04055328]
[1720715701497,1.10352524,3139.0,3138.2,0.04055328]
[1720715702047,6.82692524,3139.0,3138.2,0.04055328]
[1720715702281,3.365,3138.8,3138.2,0.04055328]
[1720715702587,4.90144035,3138.7,3138.3,0.04056661]
[1720715702796,1.10352524,3138.6,3138.0,7.48]
[1720715702947,1.10352524,3138.6,3138.1,0.04062748]
[1720715703447,4.9791511,3138.6,3138.1,0.04062748]
[1720715703654,3.87562586,3138.6,3138.1,0.04062748]
[1720715703993,0.79791511,3138.7,3138.1,0.04062748]
[1720715703994,11.63298812,3138.5,3138.1,0.04062748]
[1720715704151,3.365,3138.3,3138.1,0.04062748]
[1720715704346,4.10385443,3138.2,3138.1,0.04062748]
[1720715705487,1.10385443,3138.2,3138.1,0.04062748]
[1720715706905,1.10370078,3138.2,3138.1,0.04062748]
[1720715709882,1.51407086,3138.2,3138.1,0.04062748]
[1720715710077,0.41037008,3138.2,3137.6,19.77]
[1720715710285,0.41037008,3138.2,3138.1,0.03952895]
[1720715710286,1.51417251,3138.2,3138.1,0.03952895]
[1720715710526,1.51417251,3138.2,3137.3,7.48]
[1720715710724,1.10380243,3138.1,3137.3,7.48]
[1720715710884,0.45141725,3138.0,3137.4,0.03975243]
[1720715711078,1.10380243,3137.9,3137.4,0.03975243]
[1720715711287,1.10380243,3137.8,3137.4,0.03975243]
[1720715711484,3.365,3137.8,3137.4,0.03975243]
[1720715711784,3.37820243,3137.7,3136.5,2.3562]
[1720715711986,3.37820243,3137.7,3136.6,0.03997942]
[1720715711987,3.365,3137.6,3136.6,0.03997942]
[1720715712216,5.0191763,3137.5,3136.6,0.03997942]
[1720715712432,1.10417371,3137.4,3136.6,0.03997942]
[1720715712608,1.10417371,3137.4,3136.1,5.63489]
[1720715712805,1.10417371,3137.4,3136.2,1.54009295]
[1720715713011,1.10417371,3137.4,3136.2,4.72865295]
[1720715713213,0.83841763,3137.3,3136.2,4.72865295]
[1720715713600,1.10416214,3137.2,3136.2,4.72865295]
[1720715713941,1.10418035,3137.1,3136.2,4.72865295]
[1720715714140,1.10418035,3137.0,3136.2,4.72865295]
[1720715714342,1.10418035,3136.9,3136.2,4.72865295]
[1720715714498,0.83841763,3137.3,3136.2,4.72865295]
[1720715714833,1.10416838,3137.2,3136.2,4.72865295]
[1720715715009,1.29842698,3137.1,3136.2,4.72865295]
[1720715715207,1.10416838,3137.0,3136.2,4.72865295]
[1720715716114,0.83841763,3137.3,3136.2,4.72865295]
[1720715716115,1.10416064,3136.9,3136.4,4.6883]
[1720715716313,3.0,3137.5,3136.6,4.6881]
[1720715716602,3.0,3137.5,3136.1,2.4463]
[1720715716603,3.0,3137.6,3136.7,0.04047949]
[1720715716835,1.45515247,3137.5,3136.3,3.18838]
[1720715717042,1.10408988,3137.4,3136.4,0.04056463]
[1720715717402,4.10408988,3137.4,3136.4,3.22892463]
[1720715717716,1.10408988,3137.3,3136.4,4.72892463]
[1720715718035,0.41040899,3137.2,3136.4,4.72892463]
[1720715718240,1.10408988,3137.1,3136.4,4.72892463]
[1720715718453,1.10408988,3137.4,3136.4,0.04056463]
[1720715718802,1.10408988,3137.4,3136.4,1.54056463]
[1720715719512,4.10408988,3137.4,3136.7,3.188]
[1720715719714,1.10408988,3137.3,3136.7,3.188]
[1720715719909,3.0,3137.4,3137.0,3.1877]
[1720715720219,0.51062586,3138.2,3137.1,3.2265819]
[1720715720534,0.51062586,3138.2,3137.1,7.5190019]
[1720715720535,1.10391357,3138.1,3137.1,7.5190019]
[1720715720720,1.60186751,3138.0,3137.1,10.7066419]
[1720715721050,1.10391357,3137.9,3137.1,10.7066419]
[1720715721246,1.10391357,3137.8,3137.1,10.7065719]
[1720715721407,0.51062586,3138.2,3137.1,10.7065719]
[1720715721612,1.10387655,3138.1,3137.1,10.7065719]
[1720715721819,1.26532679,3138.0,3137.1,7.5190019]
[1720715722014,1.10387655,3137.9,3137.1,7.5190019]
[1720715722216,4.46887655,3137.9,3137.1,7.5190019]
[1720715722422,3.365,3137.7,3137.1,0.0390019]
[1720715722622,3.365,3137.5,3136.7,7.48]
[1720715722844,3.365,3137.5,3136.8,0.03903718]
[1720715722845,4.60182679,3137.4,3136.8,0.03903718]
[1720715723057,1.10387655,3137.3,3136.8,0.03903718]
[1720715723218,1.10413225,3137.2,3136.4,9.8001]
[1720715723418,1.10413225,3137.1,3136.5,0.03912232]
[1720715723620,3.49795024,3137.4,3136.5,0.03912232]
[1720715723950,1.84151861,3137.3,3136.5,0.03912232]
[1720715724135,1.104161,3137.2,3136.5,0.03912232]
[1720715724341,1.104161,3137.1,3136.5,0.03912232]
[1720715724543,1.104161,3137.0,3136.5,0.03912232]
[1720715724748,1.104161,3136.9,3136.5,0.03912232]
[1720715724944,1.104161,3136.8,3136.5,0.03912232]
[1720715725129,7.469161,3137.1,3136.0,2.2637]
[1720715725321,7.469161,3137.1,3136.6,0.03778514]
[1720715725322,1.104161,3137.0,3136.6,0.03778514]
[1720715725518,1.104161,3137.0,3136.0,2.2637]
[1720715725824,0.79797869,3136.9,3136.0,2.2637]
[1720715726015,1.104161,3136.8,3136.1,0.03792707]
[1720715726416,1.104161,3136.8,3135.9,7.48]
[1720715726417,3.365,3136.8,3135.9,7.48]
[1720715726716,3.365,3136.6,3136.0,0.03795546]
[1720715726920,4.46936383,3136.5,3136.0,0.03795546]
[1720715727138,1.6023628,3136.4,3136.0,0.03795546]
[1720715727462,1.10436383,3136.3,3136.0,0.03795546]
[1720715727965,4.46936383,3136.3,3136.0,0.03795546]
[1720715728253,4.46936383,3136.3,3135.2,7.48]
[1720715728254,1.10436383,3136.2,3135.2,7.48]
[1720715728465,0.44693638,3136.1,3135.2,7.48]
[1720715728618,7.46936383,3136.2,3135.3,0.03815424]
[1720715728619,3.365,3135.9,3135.3,0.03815424]
[1720715728823,6.18857,3136.2,3134.9,12.29]
[1720715728824,3.365,3135.7,3134.9,12.29]
[1720715729031,4.55130021,3135.6,3135.0,0.03823946]
[1720715729231,1.10436383,3135.5,3135.0,0.03823946]
[1720715729658,3.44693638,3135.6,3134.8,7.48]
[1720715729990,1.10473971,3135.5,3135.1,0.03821105]
[1720715730125,3.70969364,3135.5,3134.8,7.48]
[1720715730477,1.10477053,3135.4,3134.8,7.48]
[1720715730622,3.365,3135.2,3134.9,0.03826787]
[1720715730823,1.10492594,3135.3,3134.2,19.77]
[1720715730824,4.46992594,3135.1,3134.2,19.77]
[1720715731020,4.10492594,3135.0,3134.3,0.03616798]
[1720715731265,1.10492594,3134.9,3134.3,0.03616798]
[1720715731440,0.41049259,3134.8,3134.3,0.03616798]
[1720715731642,2.4103,3134.7,3134.3,0.03616798]
[1720715731841,3.77549259,3134.8,3134.3,0.03616798]
[1720715731842,0.41049259,3134.8,3134.3,0.08732054]
[1720715732961,3.0,3135.0,3134.3,0.08732054]
[1720715733162,6.365,3135.2,3134.3,0.08732054]
[1720715733321,1.10498175,3135.1,3134.3,0.08732054]
[1720715733522,3.365,3135.1,3134.3,0.08732054]
[1720715733718,3.0,3135.0,3134.3,0.08732054]
[1720715733966,0.6365,3134.9,3134.3,0.08732054]
[1720715734122,4.0015,3134.9,3134.3,0.08732054]
[1720715734320,3.365,3134.7,3134.3,0.08732054]
[1720715734560,3.0,3134.6,3134.3,0.08732054]
[1720715735579,6.365,3134.7,3134.3,0.08732054]
[1720715736835,6.365,3134.7,3133.8,0.1138165]
[1720715737284,6.365,3134.7,3133.9,0.08578475]
[1720715737839,3.365,3134.5,3133.9,0.08578475]
[1720715738080,3.365,3134.3,3133.9,0.08578475]
[1720715738386,3.6365,3134.2,3133.9,0.08578475]
[1720715738592,3.6365,3134.2,3133.8,0.1138165]
[1720715738954,3.6365,3134.2,3133.9,0.08322682]
[1720715739353,3.6365,3134.2,3133.8,0.1138165]
[1720715739567,3.6365,3134.2,3133.9,0.08322682]
[1720715739748,0.70015,3134.1,3133.9,0.08322682]
[1720715740252,0.51062586,3134.1,3133.8,0.1138165]
[1720715740454,3.365,3134.0,3133.9,0.08322682]
[1720715740653,6.365,3134.0,3133.8,0.1138165]
[1720715740877,3.365,3134.0,3133.9,0.08322682]
[1720715741050,6.365,3134.0,3133.9,0.08322682]
[1720715741270,7.05256259,3134.0,3133.9,0.08322682]
[1720715741454,3.68756259,3134.0,3133.8,0.1138165]
[1720715741669,0.68756259,3134.0,3133.9,0.08329907]
[1720715741975,0.51062586,3134.1,3133.8,0.1138165]
[1720715742152,3.51062586,3134.1,3133.8,0.1138165]
[1720715742356,3.51062586,3134.1,3133.9,0.08329907]
[1720715742559,3.51062586,3134.1,3133.8,0.1138165]
[1720715742871,3.51062586,3134.1,3133.9,0.08329907]
[1720715743180,0.68776259,3134.0,3133.8,0.1138165]
[1720715743541,0.68776259,3134.0,3133.9,0.08329494]
[1720715743887,0.68776259,3134.0,3133.8,0.1138165]
[1720715744246,0.51062586,3134.1,3133.9,0.08166857]
[1720715744446,3.51062586,3134.1,3133.8,0.1138165]
[1720715744779,3.51062586,3134.1,3133.9,0.08166857]
[1720715744978,6.87762586,3134.1,3133.9,0.08166857]
[1720715745148,6.87762586,3134.1,3133.8,0.1138165]
[1720715745497,4.05476259,3134.0,3133.9,0.08166857]
[1720715745658,7.05476259,3134.0,3133.9,0.08166857]
[1720715745858,7.05476259,3134.0,3133.8,0.1138165]
[1720715746060,3.0,3133.9,3133.8,0.1138165]
[1720715746253,0.68776259,3134.0,3133.8,0.1138165]
[1720715746460,3.0,3134.0,3133.8,0.1138165]
[1720715747047,3.0,3134.1,3133.8,0.1138165]
[1720715747248,3.51062586,3134.1,3133.8,0.1138165]
[1720715749848,0.51062586,3134.1,3133.8,0.1138165]
[1720715750254,3.367,3134.0,3133.8,0.1138165]
[1720715750480,7.05476259,3133.9,3133.8,0.1138165]
[1720715750690,3.367,3133.9,3133.8,0.1138165]
[1720715750992,6.367,3133.9,3133.8,0.1138165]
[1720715752159,6.367,3133.9,3133.8,0.19098358]
[1720715752497,6.367,3133.9,3133.8,0.1138165]
[1720715752710,7.05476259,3133.9,3133.8,0.1138165]
[1720715754357,8.16015033,3133.9,3133.8,0.1138165]
[1720715756098,3.68776259,3133.9,3133.8,0.1138165]
[1720715756352,1.10531337,3133.9,3133.8,0.1138165]
[1720715756795,1.10531337,3133.9,3133.8,0.18901797]
[1720715757012,1.10525071,3133.9,3133.8,0.18901797]
[1720715757210,0.51062586,3134.4,3133.8,0.18901797]
[1720715757359,1.10524227,3134.3,3133.8,0.18901797]
[1720715757558,1.26682908,3134.2,3133.8,0.18901797]
[1720715757756,1.10524227,3134.1,3133.8,0.18901797]
[1720715757959,1.10524227,3134.0,3133.8,0.18901797]
[1720715758272,1.10519392,3133.9,3133.8,0.18901797]
[1720715759120,4.47219392,3133.9,3133.8,0.1138165]
[1720715759264,8.21941331,3133.9,3133.8,0.1138165]
[1720715759463,7.11421939,3133.9,3133.8,0.1138165]
[1720715759663,8.21955379,3133.9,3133.8,0.1138165]
[1720715760166,4.85255379,3133.9,3133.8,0.1138165]
[1720715760491,4.1053344,3133.9,3133.8,0.1138165]
[1720715760897,1.1053344,3133.9,3133.8,0.18897723]
[1720715761063,4.1053344,3133.9,3133.8,0.18897723]
[1720715761415,4.1053344,3133.9,3133.8,0.1138165]
[1720715761563,1.1053344,3133.9,3133.8,0.1138165]
[1720715762006,3.0,3134.1,3133.8,0.1138165]
[1720715762163,1.74198652,3134.0,3133.8,0.1138165]
[1720715762365,0.51062586,3134.4,3133.8,0.1138165]
[1720715762366,3.87762586,3134.4,3133.8,0.1138165]
[1720715762606,4.10521075,3134.3,3133.9,0.07511029]
[1720715762898,1.10521075,3134.2,3133.9,0.07511029]
[1720715763100,0.46158366,3134.1,3133.9,0.07511029]
[1720715763394,1.61583661,3134.2,3133.8,0.1138165]
[1720715763395,1.10521075,3134.0,3133.8,0.1138165]
[1720715763593,1.10521075,3134.1,3133.8,0.1138165]
[1720715763794,1.10521075,3134.1,3133.9,0.07511029]
[1720715763795,6.34892586,3134.0,3133.9,0.07511029]
[1720715764008,9.94351075,3134.0,3133.8,0.1138165]
[1720715764202,1.74010334,3133.9,3133.8,0.1138165]
[1720715764410,4.74010334,3133.9,3133.8,0.1138165]
[1720715764967,1.74010334,3133.9,3133.8,0.1138165]
[1720715765193,5.1072879,3133.9,3133.8,0.1138165]
[1720715765397,6.47572259,3133.9,3133.8,0.1138165]
[1720715765595,6.47572259,3133.9,3132.9,7.48]
[1720715765596,11.13121833,3133.9,3132.9,7.48]
[1720715765798,3.367,3133.7,3132.9,7.48]
[1720715766008,3.38770657,3133.8,3132.9,7.48]
[1720715766009,7.47249574,3133.6,3133.0,0.07537687]
[1720715766214,1.10549574,3133.5,3133.0,0.07537687]
[1720715767068,4.47249574,3133.5,3133.0,0.07537687]
[1720715767317,4.10549574,3133.4,3133.0,0.07537687]
[1720715767523,1.85274531,3133.3,3133.0,0.07537687]
[1720715767684,1.10549574,3133.2,3133.0,0.07537687]
[1720715768090,1.10549574,3133.2,3132.3,19.77]
[1720715768301,1.10549574,3133.2,3132.4,0.07555738]
[1720715768493,1.25787543,3133.3,3132.4,0.07555738]
[1720715768827,1.86814512,3133.2,3132.4,0.07555738]
[1720715769109,1.10565758,3133.1,3132.4,0.07555738]
[1720715769406,7.47265758,3133.1,3132.4,0.07555738]
[1720715769592,1.10565758,3133.0,3132.4,0.07555738]
[1720715770379,4.98328344,3133.0,3132.4,0.07555738]
[1720715770695,3.367,3132.8,3132.4,0.07555738]
[1720715770908,1.10565758,3132.7,3132.4,0.07555738]
[1720715771212,4.10565758,3132.7,3132.4,0.07555738]
[1720715771412,1.10565758,3132.6,3132.4,0.07555738]
[1720715771990,1.10578068,3132.5,3132.4,0.07555738]
[1720715772188,1.51635875,3132.5,3132.4,0.07555738]
[1720715772397,1.51634387,3132.5,3132.4,0.07555738]
[1720715772606,1.51634387,3132.5,3132.0,2.4502]
[1720715772941,1.10568305,3132.4,3132.1,3.19274]
[1720715773220,0.51062586,3133.0,3132.1,3.26838767]
[1720715773426,0.51062586,3133.0,3132.1,0.07564767]
[1720715773427,1.1056614,3132.9,3132.1,0.07564767]
[1720715773624,1.1056614,3132.8,3132.1,1.57564767]
[1720715773839,1.1056614,3132.7,3132.1,0.07564767]
[1720715774003,3.00442586,3133.0,3132.1,0.07564767]
[1720715774004,4.1056614,3132.9,3132.1,0.07564767]
[1720715774206,1.1056614,3132.8,3131.9,4.69293]
[1720715774527,1.1056614,3132.8,3131.7,1.5]
[1720715774691,3.367,3132.7,3132.0,0.07567777]
[1720715774894,1.55292754,3132.6,3131.6,13.07769]
[1720715775192,1.10577107,3132.5,3131.7,0.07576807]
[1720715775498,3.81426614,3132.6,3131.7,0.07576807]
[1720715775499,1.10577107,3132.4,3131.7,0.07576807]
[1720715775700,1.10577107,3132.3,3131.7,0.07576807]
[1720715775905,2.4172,3132.3,3131.7,0.07576807]
[1720715776235,1.10577107,3132.2,3131.7,0.07576807]
[1720715776390,3.0,3132.4,3131.7,0.07576807]
[1720715776391,1.61639693,3132.3,3131.7,0.07576807]
[1720715776592,2.90680505,3132.2,3131.7,0.07576807]
[1720715776918,6.90118556,3132.1,3131.7,0.07576807]
[1720715777118,2.39617919,3132.0,3131.7,0.07576807]
[1720715777302,1.10577107,3131.9,3131.5,0.00081234]
[1720715777495,1.10577107,3131.9,3131.6,0.07599995]
[1720715777694,4.13800637,3132.1,3131.6,0.07599995]
[1720715777695,1.10577107,3132.0,3131.6,0.07599995]
[1720715778024,1.96684881,3132.0,3131.6,0.07599995]
[1720715778234,1.10577107,3131.9,3131.6,0.07599995]
[1720715778530,4.10577107,3131.9,3131.6,0.07599995]
[1720715778751,3.56947107,3131.8,3131.6,0.07599995]
[1720715778944,1.10577107,3131.7,3131.6,0.07599995]
[1720715779128,5.66110662,3131.7,3131.6,0.07599995]
[1720715780105,9.4147556,3131.7,3131.6,0.07599995]
[1720715780402,7.79058562,3131.7,3131.6,0.07599995]
[1720715780606,5.66110662,3131.7,3131.6,0.07599995]
[1720715781567,4.55533555,3131.7,3131.6,0.07599995]
[1720715781835,5.66154499,3131.7,3131.6,0.07599995]
[1720715782002,4.61685274,3131.7,3131.6,0.07599995]
[1720715783252,1.61685274,3131.7,3131.6,0.07599995]
[1720715783916,2.35289211,3131.7,3131.6,0.07599995]
[1720715784406,1.61685274,3131.7,3131.6,0.07599995]
[1720715784601,1.61685274,3131.7,3131.5,0.00081234]
[1720715784602,2.41515118,3131.7,3131.5,0.00081234]
[1720715784848,0.51062586,3132.4,3131.5,0.00081234]
[1720715785039,1.84181951,3132.3,3131.5,0.00081234]
[1720715785237,1.84181951,3132.2,3131.6,0.07651168]
[1720715785543,1.10597419,3132.1,3131.6,0.07651168]
[1720715785750,0.51062586,3132.3,3131.6,0.07651168]
[1720715785947,3.7994892,3132.5,3131.6,0.07651168]
[1720715786115,0.51062586,3132.8,3131.6,0.07651168]
[1720715786116,1.10587608,3132.4,3131.7,4.69314]
[1720715786317,0.51062586,3132.8,3132.0,2.3258]
[1720715786540,1.10577744,3132.7,3132.0,2.3258]
[1720715786707,1.10577744,3132.7,3132.1,0.07636117]
[1720715786708,1.10577744,3132.6,3132.1,0.07636117]
[1720715787051,1.77804363,3132.6,3132.1,0.07636117]
[1720715787349,1.61643592,3132.5,3131.5,12.17409234]
[1720715787548,1.10581006,3132.4,3132.2,0.07619439]
[1720715787748,1.10581006,3132.4,3131.5,12.17408234]
[1720715787749,0.16164359,3132.3,3131.5,12.17408234]
[1720715788046,0.67226945,3132.3,3131.5,7.48081234]
[1720715788251,1.10594883,3132.2,3131.5,7.48081234]
[1720715788410,1.61657469,3132.1,3131.5,7.48081234]
[1720715788609,1.61657469,3132.1,3131.5,0.00081234]
[1720715788610,1.10594883,3132.0,3131.5,0.00081234]
[1720715788809,1.61657469,3132.0,3131.5,0.00081234]
[1720715789046,1.10594883,3131.9,3131.5,0.00081234]
[1720715789344,0.16165747,3131.8,3131.5,0.00081234]
[1720715789640,1.10594883,3131.7,3131.5,0.00081234]
[1720715789848,3.19239,3132.5,3131.5,0.00081234]
[1720715789849,3.0,3132.4,3131.5,0.00081234]
[1720715790056,1.8418364,3132.3,3131.6,2.4741]
[1720715790254,1.10598513,3132.2,3131.6,2.4741]
[1720715790425,1.10598513,3132.1,3131.6,2.4741]
[1720715790612,0.51062586,3132.5,3131.6,2.4741]
[1720715790809,1.10583281,3132.4,3131.7,1.5]
[1720715791042,1.10583281,3132.3,3131.7,1.5]
[1720715791349,2.3315,3133.2,3131.5,0.00081234]
[1720715791350,2.3315,3133.8,3131.9,3.757]
[1720715791562,1.10562292,3133.7,3132.5,2.335]
[1720715791775,5.47453,3134.8,3132.9,2.363]
[1720715792064,1.10531079,3134.7,3133.3,3.19151]
[1720715792362,1.10531079,3134.6,3133.2,4.69155]
[1720715792508,0.547453,3134.7,3133.3,3.19151]
[1720715792509,1.10531079,3134.5,3133.3,3.19151]
[1720715792712,1.10531079,3134.4,3133.4,1.5]
[1720715792934,1.10531079,3134.3,3133.4,1.5]
[1720715793123,1.10531079,3134.2,3133.1,4.69171]
[1720715793422,4.47231079,3134.1,3133.0,3.19175]
[1720715793626,1.10531079,3134.0,3133.0,3.19175]
[1720715793821,1.10531079,3134.0,3133.1,1.5]
[1720715794048,4.10531079,3134.0,3133.1,1.5]
[1720715794369,3.0,3134.0,3133.1,4.69171]
[1720715794680,1.10533162,3133.9,3133.2,3.19154]
[1720715794832,3.0,3134.4,3133.4,3.19142]
[1720715795031,1.10525812,3134.3,3133.4,3.19142]
[1720715795366,1.10525812,3134.2,3133.4,3.19142]
[1720715795531,1.10525812,3134.3,3133.4,3.19142]
[1720715795730,1.10525812,3134.2,3133.4,3.19142]
[1720715795983,1.10525812,3134.1,3133.4,3.19142]
[1720715796144,1.10525812,3134.0,3133.4,3.19142]
[1720715796343,0.6367,3134.3,3133.4,3.19142]
[1720715796581,1.46887598,3134.2,3133.4,3.19142]
[1720715796745,1.10520598,3134.1,3133.4,3.19142]
[1720715796941,1.10520598,3134.1,3133.1,1.5]
[1720715797143,7.47220598,3134.1,3133.1,1.5]
[1720715797347,1.10520598,3134.0,3133.2,0.07595673]
[1720715797550,3.4835876,3134.0,3133.2,0.07595673]
[1720715797977,3.0,3133.9,3133.4,3.1914]
[1720715798276,0.4835876,3134.0,3133.4,3.1914]
[1720715798466,3.0,3134.3,3133.5,0.07586651]
[1720715798664,1.10526813,3134.2,3133.5,0.07586651]
[1720715798832,3.0,3134.3,3133.5,0.07586651]
[1720715798833,1.10526813,3134.1,3133.5,0.07586651]
[1720715799184,3.0,3134.3,3133.5,0.07586651]
[1720715799339,3.367,3134.5,3133.5,0.07586651]
[1720715799340,1.40518543,3134.2,3133.5,4.76715651]
[1720715799535,3.0,3134.4,3133.5,4.76715651]
[1720715799754,1.10520404,3134.3,3133.5,4.76715651]
[1720715799962,1.10520404,3134.2,3133.5,4.76715651]
[1720715800181,1.10520404,3134.3,3133.5,4.76715651]
[1720715800365,0.4105204,3134.2,3133.5,4.76715651]
[1720715802152,2.75092014,3136.0,3134.1,3.1907]
[1720715802153,3.367,3135.0,3134.1,3.1907]
[1720715802478,1.10505441,3134.9,3134.1,3.1907]
[1720715802676,3.367,3135.0,3134.2,0.0752464]
[1720715803354,3.52692726,3135.4,3134.2,3.2658364]
[1720715803555,3.367,3135.2,3134.2,3.2658364]
[1720715804349,3.367,3135.2,3134.2,0.0752464]
[1720715804859,3.367,3135.0,3134.2,0.0752464]
[1720715805058,3.0,3134.9,3134.2,0.0752464]
[1720715805265,3.0,3134.9,3134.0,7.48]
[1720715805464,0.6367,3134.8,3134.3,0.07474564]
[1720715805652,0.6367,3134.8,3134.0,10.6708]
[1720715805837,0.6367,3134.8,3134.4,0.07471558]
[1720715806046,6.367,3135.1,3134.1,7.88133]
[1720715806245,6.367,3135.1,3134.5,0.07468553]
[1720715806449,6.367,3135.1,3134.2,3.19059]
[1720715806645,3.0,3135.1,3134.4,3.1903]
[1720715806851,2.3171,3136.2,3134.7,4.69008]
[1720715807163,2.3171,3136.2,3134.8,3.26449538]
[1720715807164,1.33641548,3136.1,3134.8,3.26449538]
[1720715807469,1.10470382,3136.0,3134.8,0.07459538]
[1720715807678,0.23171,3136.1,3134.8,0.07459538]
[1720715807852,3.367,3135.9,3134.8,0.07459538]
[1720715808052,3.81417306,3135.8,3134.8,0.07459538]
[1720715808348,3.367,3135.6,3134.6,7.48]
[1720715808553,3.367,3135.4,3134.7,0.07462543]
[1720715809062,3.367,3135.2,3134.7,0.07462543]
[1720715809265,3.367,3135.0,3134.2,7.48]
[1720715809444,6.367,3134.9,3134.8,0.07459538]
[1720715809648,6.367,3134.9,3134.2,7.48]
[1720715809649,3.917,3134.9,3134.2,7.48]
[1720715809849,0.74720031,3135.1,3134.2,7.48]
[1720715809850,6.367,3134.8,3134.2,7.48]
[1720715810150,0.6367,3134.7,3134.3,0.07474564]
[1720715810553,2.3171,3134.6,3133.8,7.48]
[1720715810775,5.3171,3134.6,3133.9,0.07486587]
[1720715811492,6.367,3134.6,3133.9,0.07486587]
[1720715811695,3.0,3134.6,3133.9,0.07486587]
[1720715811854,0.36367,3134.5,3133.9,0.07486587]
[1720715812052,3.36367,3134.5,3133.9,0.07486587]
[1720715812275,0.36367,3134.5,3133.9,2.40146587]
[1720715812479,3.0,3134.9,3133.9,2.40146587]
[1720715812793,3.367,3134.9,3133.9,2.40146587]
[1720715812996,4.10510389,3134.8,3133.9,2.40146587]